bitfinex/quotes_SOLUSD_20250206
["timestamp","ask_amount","ask_price","bid_price","bid_amount"]
[1738861772981,53.11236776,190.99,190.98,0.063]
[1738861773268,54.11236776,190.99,190.98,0.063]
[1738861773471,53.11236776,190.99,190.98,0.063]
[1738861773684,30.0,190.91,190.86,21.1833529]
[1738861773891,30.0,190.89,190.86,21.1833529]
[1738861774574,30.0,190.87,190.86,0.063]
[1738861775278,30.0,190.89,190.86,21.1833529]
[1738861775471,0.12549,190.92,190.86,0.063]
[1738861775472,30.12549,190.87,190.86,0.063]
[1738861775858,30.0,190.89,190.86,21.1833529]
[1738861778078,30.0,190.87,190.86,0.063]
[1738861778469,30.12549,190.87,190.86,0.063]
[1738861778875,30.0,190.89,190.86,0.063]
[1738861779179,30.0,190.87,190.86,21.1833529]
[1738861779678,30.0,190.87,190.86,0.063]
[1738861779857,51.3713329,190.87,190.86,0.063]
[1738861780061,52.0207229,190.87,190.86,0.063]
[1738861780383,30.25098,190.81,190.8,0.063]
[1738861781482,30.12549,190.81,190.8,0.063]
[1738861783159,30.0,190.81,190.8,21.1833529]
[1738861783358,4.66,190.84,190.8,21.1833529]
[1738861783557,4.66,190.84,190.82,21.1203529]
[1738861784680,30.0,190.83,190.81,21.1203529]
[1738861784988,30.0,190.81,190.8,0.063]
[1738861786083,30.12549,190.83,190.8,21.1833529]
[1738861787081,30.0,190.88,190.82,21.1203529]
[1738861787281,30.0,190.9,190.87,21.1203529]
[1738861787771,30.0,190.88,190.86,21.1203529]
[1738861788183,30.0,190.88,190.85,21.1203529]
[1738861789188,30.5238,190.88,190.84,21.1203529]
[1738861789493,0.12549,190.87,190.84,21.1203529]
[1738861789674,0.12549,190.87,190.85,21.1203529]
[1738861789855,30.0,190.86,190.85,21.1203529]
[1738861790058,30.0,190.84,190.82,21.1203529]
[1738861790271,0.12549,190.85,190.8,21.1833529]
[1738861790560,30.0,190.83,190.8,21.1833529]
[1738861791381,30.0,190.83,190.81,21.1203529]
[1738861791680,30.0,190.83,190.8,0.063]
[1738861791880,30.524,190.83,190.8,0.063]
[1738861792289,30.12549,190.81,190.8,0.063]
[1738861793193,52.00406782,190.81,190.8,0.063]
[1738861793566,30.88371492,190.81,190.8,0.063]
[1738861795206,52.12955782,190.81,190.8,0.063]
[1738861796506,52.12955782,190.81,190.78,0.063]
[1738861796507,30.25098,190.79,190.78,0.063]
[1738861796811,52.35446209,190.79,190.78,0.063]
[1738861797008,53.47995209,190.79,190.78,0.0001]
[1738861797181,55.00405209,190.79,190.78,0.0001]
[1738861797681,54.00405209,190.79,190.78,0.0001]
[1738861798299,53.00405209,190.79,190.78,0.0001]
[1738861798681,31.88369919,190.79,190.78,0.0001]
[1738861799180,30.77508,190.79,190.78,0.0001]
[1738861799382,30.12549,190.79,190.78,0.0001]
[1738861799994,0.12549,190.79,190.78,0.0001]
[1738861800195,0.10873492,190.81,190.78,0.0001]
[1738861800393,30.10873492,190.81,190.78,21.1204529]
[1738861800601,0.10873492,190.81,190.8,21.1203529]
[1738861800807,0.12549,190.8,190.78,21.1204529]
[1738861801008,30.12549,190.79,190.78,0.0001]
[1738861801734,30.64959,190.79,190.78,0.0001]
[1738861801897,30.77508,190.79,190.78,0.0001]
[1738861802414,52.0209229,190.79,190.78,0.0001]
[1738861802817,67.43277143,190.79,190.78,0.0001]
[1738861803131,30.90077,190.71,190.7,0.063]
[1738861803419,53.0211229,190.71,190.7,0.063]
[1738861803719,55.00466791,190.71,190.7,0.063]
[1738861804228,31.88431501,190.71,190.7,0.063]
[1738861804398,30.77528,190.71,190.7,0.063]
[1738861804605,30.90077,190.71,190.7,0.063]
[1738861804899,53.0045508,190.71,190.7,0.063]
[1738861806117,30.12549,190.71,190.7,0.063]
[1738861806333,30.77528,190.71,190.7,0.063]
[1738861806898,30.0,190.71,190.7,21.1833529]
[1738861807102,30.0,190.73,190.7,21.1833529]
[1738861807405,4.66,190.74,190.71,21.1203529]
[1738861807741,30.0,190.77,190.73,21.1203529]
[1738861807909,92.34,190.79,190.76,21.1203529]
[1738861808229,30.0,190.77,190.76,21.1203529]
[1738861808416,30.0,190.77,190.74,21.1203529]
[1738861808832,0.12549,190.78,190.74,21.1203529]
[1738861809029,30.0,190.77,190.75,21.1203529]
[1738861809211,0.12549,190.78,190.75,21.1203529]
[1738861809524,30.0,190.77,190.75,21.1203529]
[1738861809719,62.34,190.79,190.76,21.1203529]
[1738861809925,30.0,190.78,190.76,21.1203529]
[1738861810107,62.34,190.79,190.76,21.1203529]
[1738861810313,62.34,190.79,190.77,21.1203529]
[1738861810512,30.0,190.78,190.75,21.1203529]
[1738861810740,30.0,190.78,190.74,34.33823733]
[1738861810942,30.0,190.78,190.75,34.33823733]
[1738861811313,30.0,190.78,190.74,34.33823733]
[1738861811511,30.0,190.74,190.7,34.40123733]
[1738861811710,30.0,190.72,190.7,0.063]
[1738861812213,34.46372733,190.71,190.7,0.063]
[1738861812437,34.58921733,190.71,190.7,0.063]
[1738861812816,0.25098,190.71,190.7,0.063]
[1738861813024,34.82269803,190.71,190.7,0.063]
[1738861813437,35.34699803,190.71,190.7,0.063]
[1738861814828,1.0087607,190.71,190.7,0.063]
[1738861815054,35.34699803,190.71,190.7,0.063]
[1738861815351,0.8832707,190.71,190.7,0.063]
[1738861816053,35.22150803,190.71,190.7,0.063]
[1738861816350,36.20495094,190.71,190.7,0.063]
[1738861816650,36.33044094,190.71,190.7,0.063]
[1738861818249,35.34699803,190.71,190.7,0.063]
[1738861818550,1.0087607,190.71,190.7,0.063]
[1738861820319,35.34699803,190.71,190.7,0.063]
[1738861820518,36.33045605,190.71,190.7,0.063]
[1738861822515,36.33045605,190.71,190.69,0.063]
[1738861822516,30.37647,190.7,190.69,0.063]
[1738861822727,0.12549,190.69,190.68,0.063]
[1738861822929,35.69838557,190.69,190.68,0.063]
[1738861823343,36.69838557,190.69,190.68,0.0001]
[1738861823538,35.69838557,190.69,190.68,0.0001]
[1738861824232,0.37647,190.69,190.68,0.0001]
[1738861824623,0.90087,190.69,190.68,0.0001]
[1738861825117,0.12549,190.69,190.68,0.0001]
[1738861825320,0.12549,190.69,190.68,34.33833733]
[1738861825548,30.0,190.7,190.68,34.33833733]
[1738861825750,30.0,190.7,190.69,34.33823733]
[1738861826345,0.1079907,190.71,190.69,34.33823733]
[1738861826525,0.1079907,190.71,190.7,34.33823733]
[1738861826839,0.1079907,190.71,190.7,39.58203733]
[1738861827147,30.1079907,190.71,190.7,34.33823733]
[1738861827335,30.0,190.7,190.69,34.33823733]
[1738861828322,0.1079907,190.71,190.69,34.33823733]
[1738861828522,0.1079907,190.71,190.7,34.33823733]
[1738861828757,0.1079907,190.71,190.7,39.58203733]
[1738861832664,0.1079907,190.71,190.7,26.3761669]
[1738861833033,0.22172975,190.71,190.7,26.3761669]
[1738861833735,0.11373905,190.71,190.7,26.3761669]
[1738861834834,0.11373905,190.71,190.7,60.92038233]
[1738861835547,0.11373905,190.71,190.7,61.70669168]
[1738861835747,3.752e-05,190.72,190.71,13.41184853]
[1738861836060,7.869e-05,190.73,190.71,35.54421543]
[1738861836367,7.869e-05,190.73,190.72,35.33030772]
[1738861836534,9.723e-05,190.75,190.73,15.41184853]
[1738861836732,0.13062045,190.79,190.75,33.41184853]
[1738861836964,0.13062045,190.79,190.75,59.78661543]
[1738861837138,30.14284803,190.78,190.75,41.1323669]
[1738861837542,30.11004829,190.76,190.74,21.1323669]
[1738861837743,30.0,190.74,190.72,21.1323669]
[1738861838168,30.11004829,190.76,190.73,21.1323669]
[1738861838459,30.0,190.74,190.73,21.1323669]
[1738861841355,30.0,190.74,190.72,21.1323669]
[1738861841669,30.03,190.74,190.72,21.1323669]
[1738861842051,0.03,190.74,190.73,21.1323669]
[1738861842442,0.03,190.74,190.73,26.3753669]
[1738861842644,0.03,190.74,190.73,39.78721543]
[1738861843355,0.03,190.74,190.73,26.3753669]
[1738861845149,0.03,190.74,190.73,39.78721543]
[1738861845775,0.03,190.74,190.73,26.3753669]
[1738861847452,0.03,190.74,190.73,21.1323669]
[1738861849367,30.0,190.73,190.71,21.1323669]
[1738861849552,30.0,190.73,190.69,0.063]
[1738861849553,30.0,190.71,190.69,0.063]
[1738861851383,30.5243,190.71,190.69,0.063]
[1738861851891,30.0,190.71,190.7,21.1323669]
[1738861852184,30.0,190.72,190.7,21.1323669]
[1738861852384,30.0,190.7,190.69,21.1953669]
[1738861852764,30.0,190.7,190.69,0.063]
[1738861852961,30.0989815,190.7,190.69,21.1953669]
[1738861853171,30.0989815,190.7,190.69,0.063]
[1738861853754,30.0989815,190.7,190.69,21.1953669]
[1738861854187,30.0989815,190.7,190.69,0.063]
[1738861855481,30.2244715,190.7,190.69,0.063]
[1738861855675,30.7487715,190.7,190.69,0.063]
[1738861856481,30.0989815,190.7,190.69,0.063]
[1738861856676,30.0989815,190.7,190.69,21.1953669]
[1738861858686,30.0989815,190.7,190.69,0.063]
[1738861859587,30.7487715,190.7,190.69,0.063]
[1738861859980,30.8742615,190.7,190.69,0.063]
[1738861861264,30.9997515,190.7,190.69,0.063]
[1738861861466,30.7487715,190.7,190.69,0.063]
[1738861862674,30.8742615,190.7,190.69,0.063]
[1738861862874,45.19955642,190.7,190.69,0.063]
[1738861863192,46.19955642,190.7,190.69,0.0001]
[1738861863382,73.82776219,190.7,190.69,0.0001]
[1738861864099,51.37647,190.67,190.66,0.0001]
[1738861864399,65.57664131,190.67,190.66,0.0001]
[1738861864691,73.53059479,190.67,190.66,0.0001]
[1738861865123,87.94244332,190.67,190.66,0.0001]
[1738861865394,87.94244332,190.67,190.62,0.0001]
[1738861865395,31.90097,190.63,190.62,0.0001]
[1738861865695,58.69529485,190.63,190.62,0.0001]
[1738861865890,36.52498413,190.63,190.62,0.0001]
[1738861866109,35.54097,190.63,190.62,0.0001]
[1738861866294,30.0,190.63,190.62,21.17041072]
[1738861866596,30.12549,190.63,190.62,0.0001]
[1738861866978,52.07128072,190.63,190.62,0.0001]
[1738861867470,54.05529745,190.63,190.62,0.0001]
[1738861868270,68.46714598,190.63,190.62,0.0001]
[1738861868471,67.46714598,190.63,190.62,0.0001]
[1738861868672,68.46714598,190.63,190.62,0.0001]
[1738861869300,30.0,190.59,190.58,0.063]
[1738861869602,53.05557085,190.59,190.58,0.063]
[1738861871379,31.88526013,190.59,190.58,0.063]
[1738861871578,30.0,190.59,190.58,21.23331072]
[1738861871784,30.0,190.61,190.58,21.23331072]
[1738861871985,30.0,190.61,190.6,22.82041072]
[1738861873105,30.100522,190.61,190.6,22.82041072]
[1738861874403,0.100522,190.61,190.6,49.23722144]
[1738861875482,0.100522,190.61,190.6,22.82041072]
[1738861876213,0.11390848,190.64,190.63,20.0]
[1738861876417,8.26194809,190.66,190.63,20.0]
[1738861876418,8.26194809,190.66,190.63,33.41184853]
[1738861876615,8.26194809,190.66,190.65,13.41184853]
[1738861876800,8.26194809,190.66,190.65,34.58215925]
[1738861877008,8.26194809,190.66,190.65,21.17031072]
[1738861877518,0.10399233,190.66,190.65,39.82735925]
[1738861877719,0.10899893,190.67,190.66,13.41184853]
[1738861878016,2.624e-05,190.69,190.68,75.75246997]
[1738861878194,8.046e-05,190.71,190.7,14.41184853]
[1738861878396,0.03,190.75,190.73,33.41184853]
[1738861878913,0.03,190.75,190.73,56.10095925]
[1738861879500,0.03,190.75,190.73,61.34395925]
[1738861879909,0.03,190.75,190.73,47.93211072]
[1738861880421,30.03,190.75,190.73,42.68911072]
[1738861880622,30.03,190.75,190.73,22.68911072]
[1738861881529,30.0,190.71,190.7,21.17031072]
[1738861882094,30.0,190.69,190.68,1.507]
[1738861882526,30.12549,190.69,190.68,1.507]
[1738861882724,30.0,190.69,190.68,22.67731072]
[1738861883100,30.12549,190.69,190.68,1.507]
[1738861883422,30.0,190.64,190.63,0.063]
[1738861883809,30.0,190.64,190.63,21.23331072]
[1738861884436,30.12549,190.64,190.63,0.063]
[1738861885108,30.12549,190.64,190.63,21.23331072]
[1738861885933,30.0,190.64,190.63,21.23331072]
[1738861886095,30.0,190.68,190.63,26.47891072]
[1738861886300,30.0,190.68,190.67,21.17031072]
[1738861886719,30.0,190.69,190.67,21.17031072]
[1738861887025,30.0,190.71,190.68,21.17031072]
[1738861887328,30.0,190.71,190.7,21.17031072]
[1738861887525,30.0,190.7,190.69,21.17031072]
[1738861887828,30.0,190.68,190.66,21.17031072]
[1738861889024,30.0,190.66,190.65,21.17031072]
[1738861891318,30.0,190.66,190.65,26.41551072]
[1738861892614,30.0,190.66,190.65,21.17031072]
[1738861892930,30.09977441,190.66,190.65,21.17031072]
[1738861893137,30.0,190.64,190.63,21.23331072]
[1738861893337,30.0,190.64,190.63,0.063]
[1738861893919,30.12549,190.64,190.63,0.063]
[1738861894238,51.42129072,190.64,190.63,0.063]
[1738861894722,51.94579072,190.64,190.63,0.063]
[1738861894921,52.07128072,190.64,190.63,0.063]
[1738861895158,56.71128072,190.64,190.63,0.063]
[1738861895535,57.69518861,190.64,190.63,0.063]
[1738861897837,36.52487789,190.64,190.63,0.063]
[1738861898039,35.54097,190.64,190.63,0.063]
[1738861898622,30.0,190.64,190.63,21.23331072]
[1738861900214,30.12549,190.64,190.63,0.063]
[1738861900441,30.64999,190.64,190.63,0.063]
[1738861900942,30.77548,190.64,190.63,0.063]
[1738861901116,52.07128072,190.64,190.63,0.063]
[1738861902730,52.07128072,190.64,190.63,0.0001]
[1738861902731,68.46711272,190.64,190.63,0.0001]
[1738861905112,31.37647,190.59,190.58,0.063]
[1738861905451,58.17099994,190.59,190.58,0.063]
[1738861906527,58.69559994,190.59,190.58,0.063]
[1738861906725,57.69559994,190.59,190.58,0.063]
[1738861908045,35.54107,190.59,190.58,0.063]
[1738861908224,56.71138072,190.59,190.58,0.063]
[1738861910631,49.76189378,190.59,190.58,0.063]
[1738861912926,49.85781697,190.59,190.58,0.063]
[1738861914353,63.2696655,190.59,190.58,0.063]
[1738861914543,64.2696655,190.59,190.58,0.063]
[1738861915035,64.2696655,190.59,190.58,0.0001]
[1738861915223,30.37647,190.55,190.54,0.063]
[1738861915423,44.59761898,190.55,190.54,0.063]
[1738861916150,59.53416751,190.55,190.54,0.063]
[1738861916351,14.78831853,190.54,190.53,0.0001]
[1738861916534,29.02503946,190.54,190.53,0.0001]
[1738861916741,13.61319093,190.54,190.53,0.0001]
[1738861918157,14.13799093,190.54,190.53,0.0001]
[1738861921268,96.23799093,190.54,190.53,0.0001]
[1738861921848,100.87799093,190.54,190.53,0.0001]
[1738861922137,115.28983946,190.54,190.53,0.0001]
[1738861922347,64.78831853,190.52,190.51,0.0001]
[1738861922564,79.00967009,190.52,190.51,0.0001]
[1738861923567,79.53447009,190.52,190.51,0.0001]
[1738861924569,79.53447009,190.52,190.43,0.063]
[1738861924570,44.78831853,190.5,190.43,0.063]
[1738861924876,30.25098,190.44,190.43,0.063]
[1738861925051,44.59796357,190.44,190.43,0.063]
[1738861925563,45.12296357,190.44,190.43,0.063]
[1738861926270,58.5348121,190.44,190.43,0.063]
[1738861926445,30.37647,190.41,190.4,0.063]
[1738861926645,49.23830619,190.41,190.4,0.063]
[1738861927350,48.25319093,190.41,190.4,0.063]
[1738861927677,63.17519383,190.41,190.4,0.063]
[1738861928244,63.17519383,190.41,190.4,0.0001]
[1738861929073,65.17519383,190.41,190.4,0.0001]
[1738861929373,50.37647,190.39,190.38,0.063]
[1738861929570,78.53557447,190.39,190.38,0.0001]
[1738861929871,80.53557447,190.39,190.38,0.0001]
[1738861930760,78.53557447,190.39,190.38,0.0001]
[1738861931372,30.25098,190.39,190.38,0.0001]
[1738861931668,30.0,190.39,190.38,13.23682093]
[1738861931853,30.0,190.39,190.38,0.0001]
[1738861932353,30.37647,190.39,190.38,0.0001]
[1738861933054,44.24409405,190.39,190.38,0.0001]
[1738861933453,31.00737312,190.39,190.38,0.0001]
[1738861933874,30.35668312,190.39,190.38,0.0001]
[1738861934959,30.48217312,190.39,190.38,0.0001]
[1738861935276,44.24409405,190.39,190.38,0.0001]
[1738861935655,57.65594258,190.39,190.38,0.0001]
[1738861937176,30.35668312,190.39,190.38,0.0001]
[1738861938375,30.10570312,190.39,190.38,13.23682093]
[1738861938668,0.10570312,190.39,190.38,13.23682093]
[1738861938981,30.10570312,190.39,190.38,13.23682093]
[1738861939752,30.10570312,190.39,190.38,0.0001]
[1738861939961,30.23119312,190.39,190.38,0.0001]
[1738861940363,30.10570312,190.39,190.38,18.48942093]
[1738861940563,30.10570312,190.39,190.38,13.23682093]
[1738861941875,30.23119312,190.39,190.38,0.0001]
[1738861943066,30.10570312,190.39,190.38,13.23682093]
[1738861943886,0.10570312,190.39,190.38,18.48942093]
[1738861945481,0.10570312,190.39,190.38,31.72614186]
[1738861946187,8.2e-05,190.4,190.38,47.13799039]
[1738861946385,0.11273319,190.41,190.4,33.41184853]
[1738861946575,0.10026855,190.42,190.4,61.88529039]
[1738861946760,0.10432547,190.45,190.43,20.0]
[1738861946961,0.10432547,190.45,190.43,35.02415946]
[1738861947155,2.547e-05,190.45,190.44,28.64856946]
[1738861947465,0.10630993,190.47,190.45,13.41184853]
[1738861947666,0.10630993,190.47,190.45,27.43585322]
[1738861947965,0.10630993,190.47,190.45,18.48742093]
[1738861948686,0.10630993,190.47,190.45,31.89926946]
[1738861948984,0.11549054,190.48,190.47,20.0]
[1738861949179,0.11549054,190.48,190.47,33.23672093]
[1738861949771,0.11549054,190.48,190.47,51.89866946]
[1738861949990,0.11549054,190.48,190.47,38.48682093]
[1738861950473,0.11549054,190.48,190.47,33.23672093]
[1738861950861,30.11549054,190.48,190.47,33.23672093]
[1738861951054,30.11549054,190.48,190.47,13.23672093]
[1738861951264,30.0,190.46,190.44,13.23672093]
[1738861951687,30.0,190.46,190.45,33.23672093]
[1738861951862,30.0,190.46,190.45,13.23672093]
[1738861952464,30.11549054,190.48,190.45,13.23672093]
[1738861952665,30.11549054,190.48,190.46,13.23672093]
[1738861952864,30.0,190.47,190.46,21.19324658]
[1738861953189,30.0,190.45,190.43,21.19324658]
[1738861953686,30.0,190.43,190.42,21.19324658]
[1738861953888,30.0,190.41,190.4,21.19324658]
[1738861956772,30.0,190.39,190.38,21.19334658]
[1738861956971,30.0,190.39,190.38,0.0001]
[1738861957184,30.0,190.39,190.38,21.19334658]
[1738861957473,30.0,190.39,190.38,0.0001]
[1738861957896,30.0,190.39,190.38,21.19334658]
[1738861959171,30.0,190.39,190.38,26.44594658]
[1738861960097,30.0,190.41,190.38,26.44594658]
[1738861960282,30.0,190.41,190.4,21.19324658]
[1738861962397,30.0,190.43,190.4,21.19324658]
[1738861962605,30.12549,190.43,190.42,21.19324658]
[1738861962899,30.0,190.43,190.42,21.19324658]
[1738861963699,30.0,190.39,190.38,21.19334658]
[1738861964401,30.0,190.46,190.41,20.0]
[1738861964598,30.0,190.44,190.41,20.0]
[1738861964779,30.0,190.44,190.43,21.19324658]
[1738861964981,30.0,190.44,190.42,21.19324658]
[1738861965504,30.0,190.46,190.43,21.19324658]
[1738861965680,30.0,190.46,190.45,21.19324658]
[1738861966074,0.17060292,190.47,190.45,21.19324658]
[1738861966293,0.17060292,190.47,190.46,21.19324658]
[1738861967191,30.0,190.46,190.45,21.19324658]
[1738861967503,30.0,190.44,190.41,21.19324658]
[1738861967685,30.0,190.42,190.4,21.19324658]
[1738861968297,30.0,190.4,190.38,21.19334658]
[1738861968475,30.0,190.4,190.39,21.19324658]
[1738861968985,30.0,190.44,190.39,26.44554658]
[1738861969305,30.0,190.46,190.43,21.19324658]
[1738861969480,30.0,190.44,190.43,21.19324658]
[1738861970274,30.0,190.46,190.43,21.19324658]
[1738861970473,30.0,190.46,190.45,21.19324658]
[1738861971680,30.0,190.44,190.43,21.19324658]
[1738861972398,30.0,190.45,190.43,21.19324658]
[1738861972702,30.0,190.45,190.44,21.19324658]
[1738861973198,30.11072604,190.45,190.44,21.19324658]
[1738861973686,0.11072604,190.45,190.44,21.19324658]
[1738861975301,0.11049625,190.46,190.44,28.23157145]
[1738861975494,0.11049625,190.46,190.45,22.19324658]
[1738861975692,0.11049625,190.46,190.45,21.19324658]
[1738861976899,0.11049625,190.46,190.45,14.02539865]
[1738861977403,0.11049625,190.46,190.45,13.23811315]
[1738861981413,0.11049625,190.46,190.45,19.48881315]
[1738861981584,0.15760446,190.47,190.46,14.23811315]
[1738861981785,0.15760446,190.47,190.46,13.23811315]
[1738861982002,0.15760446,190.47,190.46,1.0]
[1738861982207,0.15760446,190.47,190.45,0.78724855]
[1738861982411,0.15760446,190.47,190.41,22.0]
[1738861982701,0.15760446,190.47,190.41,7.03924489]
[1738861982909,0.15760446,190.47,190.44,20.0]
[1738861983115,0.15760446,190.47,190.44,22.0]
[1738861983306,0.1107306,190.48,190.46,2.0]
[1738861983487,0.1107306,190.48,190.47,1.0]
[1738861983814,0.1107306,190.48,190.46,1.78722934]
[1738861983996,0.1107306,190.48,190.44,22.0]
[1738861984493,0.1107306,190.48,190.44,21.0]
[1738861984907,0.1107306,190.48,190.44,1.0]
[1738861985085,0.1107306,190.48,190.46,20.0]
[1738861986507,0.10325256,190.49,190.48,1.0]
[1738861986892,0.10325256,190.49,190.48,21.0]
[1738861987287,0.09534762,190.51,190.5,1.0]
[1738861987506,0.10903358,190.53,190.5,1.78707533]
[1738861988199,0.10903358,190.53,190.5,2.78707533]
[1738861989099,0.10903358,190.53,190.51,20.0]
[1738861989798,0.10903358,190.53,190.5,20.0]
[1738861993101,0.0974793,190.51,190.5,20.0]
[1738861994385,0.0974793,190.51,190.5,20.78711761]
[1738861995797,0.0974793,190.51,190.46,0.03]
[1738861996513,0.0974793,190.51,190.47,20.0]
[1738861996815,0.0974793,190.51,190.49,20.0]
[1738861997211,0.0974793,190.51,190.46,0.03]
[1738861997521,0.0974793,190.51,190.48,20.0]
[1738861999513,0.0974793,190.51,190.47,21.78730045]
[1738861999819,0.0974793,190.51,190.49,0.78721901]
[1738862000926,0.0974793,190.51,190.49,1.78721901]
[1738862001228,0.0974793,190.51,190.5,20.0]
[1738862001607,0.0974793,190.51,190.48,0.78718351]
[1738862001924,0.0974793,190.51,190.47,0.78721592]
[1738862002110,0.0974793,190.51,190.47,20.0]
[1738862003120,0.0974793,190.51,190.46,0.03]
[1738862003918,13.23683829,190.47,190.46,0.03]
[1738862004115,30.0,190.45,190.38,0.0001]
[1738862004423,30.0,190.45,190.4,20.0]
[1738862004930,43.23683829,190.45,190.38,0.0001]
[1738862005309,43.23683829,190.45,190.39,20.0]
[1738862005534,13.23683829,190.44,190.39,20.0]
[1738862005697,13.23683829,190.44,190.38,0.0001]
[1738862006015,13.23683829,190.44,190.39,20.0]
[1738862006228,30.0,190.45,190.39,20.0]
[1738862006396,31.28142742,190.47,190.39,20.0]
[1738862006598,30.0,190.47,190.39,20.0]
[1738862006808,30.0,190.49,190.4,22.78753426]
[1738862007123,30.0,190.49,190.4,21.78753426]
[1738862007525,30.0,190.49,190.41,2.0]
[1738862007820,30.0,190.49,190.41,7.2516]
[1738862008010,30.0,190.49,190.46,0.03]
[1738862008719,0.1604793,190.51,190.46,0.03]
[1738862008720,30.0,190.47,190.46,0.03]
[1738862009221,30.1604793,190.51,190.46,0.03]
[1738862009730,30.0,190.49,190.46,0.03]
[1738862010242,30.0,190.47,190.46,0.03]
[1738862012032,43.23683829,190.47,190.46,0.03]
[1738862013238,30.10447657,190.47,190.46,0.03]
[1738862013408,43.34131486,190.47,190.46,0.03]
[1738862013618,30.0,190.43,190.38,0.0001]
[1738862013916,43.23683829,190.43,190.38,0.0001]
[1738862014121,30.0,190.43,190.38,0.0001]
[1738862015437,30.0,190.43,190.38,20.0001]
[1738862015642,30.0,190.41,190.38,0.0001]
[1738862015831,43.23683829,190.41,190.38,0.0001]
[1738862016020,30.0,190.39,190.38,0.0001]
[1738862016336,44.55999382,190.39,190.38,0.0001]
[1738862016505,30.0,190.39,190.38,0.0001]
[1738862017019,43.23683829,190.39,190.38,0.0001]
[1738862017209,30.0,190.39,190.38,0.0001]
[1738862017409,31.2941113,190.39,190.38,0.0001]
[1738862017627,30.0,190.37,190.33,0.03]
[1738862018037,43.23683829,190.37,190.33,0.03]
[1738862018437,30.0,190.37,190.33,0.03]
[1738862018741,13.23683829,190.36,190.33,0.03]
[1738862018921,43.23683829,190.37,190.33,0.03]
[1738862020344,30.0,190.37,190.33,0.03]
[1738862021825,43.23683829,190.37,190.33,0.03]
[1738862023514,13.23683829,190.35,190.33,0.03]
[1738862023720,13.23683829,190.36,190.33,0.03]
[1738862024314,43.23683829,190.37,190.33,0.03]
[1738862024719,43.23683829,190.35,190.33,0.03]
[1738862025122,13.23683829,190.34,190.33,0.03]
[1738862025642,30.0,190.32,190.26,0.03]
[1738862025845,43.23683829,190.32,190.26,0.03]
[1738862026220,13.23683829,190.31,190.26,0.03]
[1738862026421,30.0,190.3,190.26,0.03]
[1738862028548,30.0,190.34,190.26,0.03]
[1738862029843,30.0,190.32,190.26,0.03]
[1738862030358,43.23683829,190.32,190.26,0.03]
[1738862030523,30.0,190.32,190.26,0.03]
[1738862030723,43.76213829,190.34,190.26,0.03]
[1738862030938,30.0,190.36,190.26,1.03]
[1738862031147,30.0,190.36,190.27,0.78814531]
[1738862031648,30.0,190.36,190.28,20.0]
[1738862031846,30.0,190.36,190.28,21.0]
[1738862032047,30.0,190.36,190.28,22.0]
[1738862032551,30.0,190.36,190.29,5.2551]
[1738862032849,30.0,190.38,190.3,1.7879695]
[1738862033150,30.0,190.38,190.32,2.0]
[1738862033151,0.11233276,190.33,190.32,2.0]
[1738862033356,0.11233276,190.33,190.32,36.19955003]
[1738862034746,0.11233276,190.33,190.32,36.32504003]
[1738862034933,0.10608876,190.34,190.33,35.66282853]
[1738862035328,0.11218987,190.36,190.35,15.66282853]
[1738862035642,1.30180648,190.5,190.37,15.66282853]
[1738862035643,30.0,190.48,190.37,15.66282853]
[1738862035951,30.0,190.48,190.37,16.45031811]
[1738862037028,30.0,190.48,190.37,21.70321811]
[1738862038854,30.0,190.48,190.37,21.45223811]
[1738862039040,43.23683829,190.46,190.37,21.45223811]
[1738862040141,43.23683829,190.46,190.37,20.45223811]